[Event "European Online Club-ch-I 2021"]
[Site "Online"]
[Date "2021.03.27"]
[Round "4.6"]
[White "Godart, Francois"]
[Black "Mladek, Richard"]
[Result "1-0"]
[ECO "C33"]
[WhiteElo "2422"]
[BlackElo "2291"]
[Annotator "NA"]
[PlyCount "95"]
[EventDate "2021.03.27"]
[EventType "team-tourn"]
[EventCountry "NET"]
[SourceTitle "playchess.com"]
[Source "ChessBase"]
[SourceQuality "1"]
[TimeControl "900+5"]

1. e4 {[%emt 0:00:00]} e5 {[%emt 0:00:03]} 2. f4 {[%emt 0:00:04]} exf4 {[%emt 0:00:07]} 3. Nc3 {[%emt 0:00:04]} Qh4+ {[%emt 0:00:20]} 4. Ke2 {[%emt 0:00:02]} g5 {[%emt 0:01:36]} 5. Nf3 {[%emt 0:00:16]} Qh5 {[%emt 0:00:06]} 6. d4 {[%emt 0:00:13]} d6 {[%emt 0:00:19]} 7. Kf2 {[%emt 0:00:33]} Nf6 {[%emt 0:00:13]} 8. Bc4 {[%emt 0:01:04]} g4 {[%emt 0:01:42]} 9. Ne1 {[%emt 0:00:54]} g3+ {[%emt 0:00:12]} 10. Kg1 {[%emt 0:00:03]} Bg4 {[%emt 0:01:21]} 11. Nf3 {[%emt 0:00:48]} Bxf3 {[%emt 0:01:21]} 12. Qxf3 {[%emt 0:00:03]} Qxf3 {[%emt 0:01:19]} 13. gxf3 {[%emt 0:00:03]} Nc6 {[%emt 0:00:25]} 14. Bb5 {[%emt 0:00:48]} gxh2+ {[%emt 0:00:49]} 15. Rxh2 {[%emt 0:00:04]} Rg8+ {[%emt 0:00:08]} 16. Kf2 {[%emt 0:00:05]} a6 {[%emt 0:00:34]} 17. Bxc6+ {[%emt 0:00:05]} bxc6 {[%emt 0:00:01]} 18. Bxf4 {[%emt 0:00:01]} Rb8 {[%emt 0:00:05]} 19. b3 {[%emt 0:00:04]} Bg7 {[%emt 0:00:14]} 20. e5 {[%emt 0:00:18]} Nd7 {[%emt 0:00:24]} 21. Rxh7 {[%emt 0:00:44]} Nf8 {[%emt 0:00:19]} 22. Rh5 {[%emt 0:00:25]} Ne6 {[%emt 0:00:13]} 23. Be3 {[%emt 0:00:09]} c5 {[%emt 0:00:23]} 24. d5 {[%emt 0:01:36]} Nd4 {[%emt 0:00:28]} 25. Bxd4 {[%emt 0:00:02]} cxd4 {[%emt 0:00:03]} 26. Ne2 {[%emt 0:00:41]} dxe5 {[%emt 0:00:53]} 27. Rg1 {[%emt 0:00:05]} f6 {[%emt 0:01:00]} 28. f4 {[%emt 0:01:34]} Kf7 {[%emt 0:00:21]} 29. fxe5 {[%emt 0:00:20]} fxe5 {[%emt 0:00:05]} 30. Kf3 {[%emt 0:00:02]} Rh8 {[%emt 0:00:13]} 31. Rf5+ {[%emt 0:00:03]} Bf6 {[%emt 0:00:12]} 32. Ke4 {[%emt 0:02:40]} Rh4+ {[%emt 0:00:13]} 33. Kd3 {[%emt 0:00:01]} e4+ {[%emt 0:00:10]} 34. Kd2 {[%emt 0:00:02]} Rh2 {[%emt 0:00:16]} 35. Rg4 {[%emt 0:00:29]} Rb5 {[%emt 0:00:58]} 36. Rgf4 {[%emt 0:00:32]} Rb6 {[%emt 0:00:02]} 37. Rxe4 {[%emt 0:00:09]} Kg6 {[%emt 0:00:03]} 38. Rf3 {[%emt 0:00:03]} Rd6 {[%emt 0:00:10]} 39. Kd3 {[%emt 0:00:10]} c6 {[%emt 0:00:34]} 40. Nf4+ {[%emt 0:01:16]} Kg7 {[%emt 0:00:06]} 41. dxc6 {[%emt 0:00:11]} Rxc6 {[%emt 0:00:02]} 42. Nd5 {[%emt 0:00:02]} Rcxc2 {[%emt 0:00:12]} 43. Rg4+ {[%emt 0:00:07]} Bg5 {[%emt 0:00:09]} 44. Rxg5+ {[%emt 0:00:06]} Kh6 {[%emt 0:00:01]} 45. Rgg3 {[%emt 0:00:06]} Rxa2 {[%emt 0:00:06]} 46. Rh3+ {[%emt 0:00:03]} Rxh3 {[%emt 0:00:03]} 47. Rxh3+ {[%emt 0:00:03]} Kg5 {[%emt 0:00:01]} 48. Kxd4 {[%emt 0:00:01]} 1-0

[Event "European Online Club-ch-I 2021"]
[Site "Online"]
[Date "2021.03.27"]
[Round "4.7"]
[White "Eret, Matous"]
[Black "Marechal, Andy"]
[Result "0-1"]
[ECO "B40"]
[WhiteElo "2255"]
[BlackElo "2332"]
[Annotator "NA"]
[PlyCount "108"]
[EventDate "2021.03.27"]
[EventType "team-tourn"]
[EventCountry "NET"]
[SourceTitle "playchess.com"]
[Source "ChessBase"]
[SourceQuality "1"]
[TimeControl "900+5"]

1. e4 {[%emt 0:00:00]} e6 {[%emt 0:00:03]} 2. d3 {[%emt 0:00:23]} c5 {[%emt 0:00:05]} 3. Nf3 {[%emt 0:00:06]} Nc6 {[%emt 0:00:01]} 4. Be2 {[%emt 0:00:05]} g6 {[%emt 0:00:06]} 5. O-O {[%emt 0:00:03]} Bg7 {[%emt 0:00:02]} 6. Nbd2 {[%emt 0:00:03]} d6 {[%emt 0:00:03]} 7. Kh1 {[%emt 0:00:17]} Nge7 {[%emt 0:00:10]} 8. c3 {[%emt 0:00:36]} e5 {[%emt 0:00:02]} 9. a4 {[%emt 0:00:12]} O-O {[%emt 0:00:06]} 10. Nc4 {[%emt 0:00:55]} h6 {[%emt 0:00:06]} 11. Ng1 {[%emt 0:00:26]} d5 {[%emt 0:00:28]} 12. exd5 {[%emt 0:00:28]} Nxd5 {[%emt 0:00:05]} 13. Bf3 {[%emt 0:00:17]} Be6 {[%emt 0:00:16]} 14. Ne2 {[%emt 0:00:25]} Qd7 {[%emt 0:00:07]} 15. a5 {[%emt 0:00:14]} Rad8 {[%emt 0:00:14]} 16. Qa4 {[%emt 0:01:30]} Nde7 {[%emt 0:00:18]} 17. Be3 {[%emt 0:01:00]} Qxd3 {[%emt 0:01:00]} 18. Na3 {[%emt 0:00:12]} Bd5 {[%emt 0:03:04]} 19. Ng1 {[%emt 0:02:39]} Bxf3 {[%emt 0:01:21]} 20. Nxf3 {[%emt 0:00:00]} b6 {[%emt 0:01:47]} 21. Nc4 {[%emt 0:01:11]} Rb8 {[%emt 0:01:18]} 22. Rfd1 {[%emt 0:01:37]} Qf5 {[%emt 0:00:39]} 23. axb6 {[%emt 0:00:06]} axb6 {[%emt 0:00:03]} 24. Qb5 {[%emt 0:00:40]} e4 {[%emt 0:00:58]} 25. Ng1 {[%emt 0:00:24]} Ne5 {[%emt 0:01:12]} 26. Nd6 {[%emt 0:00:33]} Qe6 {[%emt 0:00:46]} 27. h3 {[%emt 0:01:07]} Nd3 {[%emt 0:00:57]} 28. Nxe4 {[%emt 0:00:31]} Nxb2 {[%emt 0:00:10]} 29. Qxb2 {[%emt 0:00:18]} Qxe4 {[%emt 0:00:03]} 30. Ra7 {[%emt 0:00:26]} Nd5 {[%emt 0:00:39]} 31. Bd2 {[%emt 0:00:21]} Qd3 {[%emt 0:00:25]} 32. Qc1 {[%emt 0:00:17]} Nxc3 {[%emt 0:00:09]} 33. Re1 {[%emt 0:00:04]} Ne4 {[%emt 0:00:21]} 34. Be3 {[%emt 0:00:11]} Kh7 {[%emt 0:00:16]} 35. Nf3 {[%emt 0:00:02]} Nf6 {[%emt 0:00:10]} 36. Kg1 {[%emt 0:00:06]} Rbe8 {[%emt 0:00:14]} 37. Rd1 {[%emt 0:00:06]} Qf5 {[%emt 0:00:03]} 38. Rb7 {[%emt 0:00:06]} Re6 {[%emt 0:00:03]} 39. Bf4 {[%emt 0:00:05]} g5 {[%emt 0:00:16]} 40. Bg3 {[%emt 0:00:04]} Ne4 {[%emt 0:00:02]} 41. Rf1 {[%emt 0:00:03]} h5 {[%emt 0:00:03]} 42. h4 {[%emt 0:00:07]} g4 {[%emt 0:00:01]} 43. Ng5+ {[%emt 0:00:01]} Nxg5 {[%emt 0:00:01]} 44. hxg5 {[%emt 0:00:00]} Kg6 {[%emt 0:00:03]} 45. Rd7 {[%emt 0:00:06]} Rfe8 {[%emt 0:00:02]} 46. Qa3 {[%emt 0:00:08]} Qxg5 {[%emt 0:00:03]} 47. Qd3+ {[%emt 0:00:02]} Qf5 {[%emt 0:00:00]} 48. Qxf5+ {[%emt 0:00:02]} Kxf5 {[%emt 0:00:02]} 49. Rxf7+ {[%emt 0:00:00]} Kg6 {[%emt 0:00:01]} 50. Rc7 {[%emt 0:00:05]} Bf6 {[%emt 0:00:04]} 51. Kh2 {[%emt 0:00:13]} h4 {[%emt 0:00:05]} 52. Bf4 {[%emt 0:00:01]} Kf5 {[%emt 0:00:08]} 53. Bd2 {[%emt 0:00:11]} Be5+ {[%emt 0:00:02]} 54. Kg1 {[%emt 0:00:04]} Bxc7 {[%emt 0:00:02]} 0-1

[Event "European Online Club-ch-I 2021"]
[Site "Online"]
[Date "2021.03.27"]
[Round "4.8"]
[White "Dishman, Stephen"]
[Black "Stinka, Jakub"]
[Result "1-0"]
[ECO "E04"]
[WhiteElo "2316"]
[BlackElo "2232"]
[Annotator "NA"]
[PlyCount "127"]
[EventDate "2021.03.27"]
[EventType "team-tourn"]
[EventCountry "NET"]
[SourceTitle "playchess.com"]
[Source "ChessBase"]
[SourceQuality "1"]
[TimeControl "900+5"]

1. Nf3 {[%emt 0:00:00]} Nf6 {[%emt 0:00:15]} 2. c4 {[%emt 0:00:03]} e6 {[%emt 0:00:02]} 3. g3 {[%emt 0:00:03]} d5 {[%emt 0:00:04]} 4. d4 {[%emt 0:00:02]} dxc4 {[%emt 0:00:09]} 5. Bg2 {[%emt 0:00:02]} Nc6 {[%emt 0:00:02]} 6. Qa4 {[%emt 0:00:11]} Bb4+ {[%emt 0:00:06]} 7. Bd2 {[%emt 0:00:04]} Nd5 {[%emt 0:00:02]} 8. Qb5 {[%emt 0:00:03]} O-O {[%emt 0:01:06]} 9. Qxc4 {[%emt 0:00:12]} Nb6 {[%emt 0:00:42]} 10. Qd3 {[%emt 0:00:04]} e5 {[%emt 0:02:11]} 11. Bxb4 {[%emt 0:01:54]} Nxb4 {[%emt 0:00:04]} 12. Qd2 {[%emt 0:00:06]} Nc6 {[%emt 0:01:46]} 13. dxe5 {[%emt 0:00:07]} Bg4 {[%emt 0:00:40]} 14. O-O {[%emt 0:01:27]} Qe7 {[%emt 0:04:22]} 15. Qc3 {[%emt 0:01:39]} Rfe8 {[%emt 0:00:13]} 16. Nbd2 {[%emt 0:01:56]} Nxe5 {[%emt 0:00:24]} 17. Nxe5 {[%emt 0:00:05]} Qxe5 {[%emt 0:00:01]} 18. Qxe5 {[%emt 0:00:17]} Rxe5 {[%emt 0:00:02]} 19. e3 {[%emt 0:01:06]} c6 {[%emt 0:00:10]} 20. h3 {[%emt 0:00:08]} Bd7 {[%emt 0:00:45]} 21. Rfc1 {[%emt 0:00:16]} Rd8 {[%emt 0:00:14]} 22. Nb3 {[%emt 0:00:12]} Bc8 {[%emt 0:01:09]} 23. Nd4 {[%emt 0:00:37]} f6 {[%emt 0:00:47]} 24. b4 {[%emt 0:00:25]} a6 {[%emt 0:00:51]} 25. a4 {[%emt 0:00:09]} Re7 {[%emt 0:00:25]} 26. b5 {[%emt 0:00:13]} axb5 {[%emt 0:00:01]} 27. axb5 {[%emt 0:00:00]} cxb5 {[%emt 0:00:04]} 28. Nxb5 {[%emt 0:00:33]} Be6 {[%emt 0:00:11]} 29. Rab1 {[%emt 0:00:20]} Bd5 {[%emt 0:00:11]} 30. Nd4 {[%emt 0:01:26]} Bxg2 {[%emt 0:00:06]} 31. Kxg2 {[%emt 0:00:00]} Nd5 {[%emt 0:00:03]} 32. Kf3 {[%emt 0:00:43]} Kf7 {[%emt 0:00:05]} 33. Rb3 {[%emt 0:00:08]} Red7 {[%emt 0:00:05]} 34. Rcb1 {[%emt 0:00:06]} b6 {[%emt 0:00:14]} 35. g4 {[%emt 0:00:44]} g6 {[%emt 0:00:08]} 36. Nc6 {[%emt 0:00:40]} Rc8 {[%emt 0:00:05]} 37. Nb4 {[%emt 0:00:02]} Nxb4 {[%emt 0:00:02]} 38. Rxb4 {[%emt 0:00:00]} Rc2 {[%emt 0:00:02]} 39. Rxb6 {[%emt 0:00:07]} Kg7 {[%emt 0:00:06]} 40. Rb7 {[%emt 0:00:05]} Rcd2 {[%emt 0:00:05]} 41. h4 {[%emt 0:00:05]} h5 {[%emt 0:00:04]} 42. g5 {[%emt 0:00:18]} fxg5 {[%emt 0:00:03]} 43. hxg5 {[%emt 0:00:03]} R2d5 {[%emt 0:00:05]} 44. Rxd7+ {[%emt 0:00:22]} Rxd7 {[%emt 0:00:02]} 45. Ke4 {[%emt 0:00:09]} Re7+ {[%emt 0:00:02]} 46. Kd3 {[%emt 0:00:02]} Kf7 {[%emt 0:00:06]} 47. f4 {[%emt 0:00:03]} Rd7+ {[%emt 0:00:02]} 48. Ke2 {[%emt 0:00:02]} Ra7 {[%emt 0:00:02]} 49. Kf3 {[%emt 0:00:06]} Ra3 {[%emt 0:00:02]} 50. Rb7+ {[%emt 0:00:11]} Kg8 {[%emt 0:00:03]} 51. Ke4 {[%emt 0:00:09]} h4 {[%emt 0:00:07]} 52. Rb1 {[%emt 0:00:04]} Ra4+ {[%emt 0:00:04]} 53. Kf3 {[%emt 0:00:03]} Ra7 {[%emt 0:00:17]} 54. Rh1 {[%emt 0:00:02]} Rh7 {[%emt 0:00:01]} 55. Kg4 {[%emt 0:00:02]} Re7 {[%emt 0:00:07]} 56. Rh3 {[%emt 0:00:02]} Kf7 {[%emt 0:00:06]} 57. Kxh4 {[%emt 0:00:03]} Ke6 {[%emt 0:00:03]} 58. Kg4 {[%emt 0:00:20]} Kd5 {[%emt 0:00:02]} 59. Kf3 {[%emt 0:00:03]} Re6 {[%emt 0:00:23]} 60. Rh8 {[%emt 0:00:04]} Rc6 {[%emt 0:00:03]} 61. Rf8 {[%emt 0:00:03]} Ra6 {[%emt 0:00:07]} 62. e4+ {[%emt 0:00:08]} Kd4 {[%emt 0:00:09]} 63. Rd8+ {[%emt 0:00:02]} Kc5 {[%emt 0:00:02]} 64. f5 {[%emt 0:00:06]} 1-0

[Event "European Online Club-ch-I 2021"]
[Site "Online"]
[Date "2021.03.27"]
[Round "4.9"]
[White "Stephan, Victor"]
[Black "Batsiashvili, Nino"]
[Result "0-1"]
[ECO "E34"]
[WhiteElo "2430"]
[BlackElo "2491"]
[Annotator "ChessBase"]
[PlyCount "144"]
[EventDate "2021.03.27"]
[EventType "team-tourn"]
[EventCountry "NET"]
[SourceTitle "playchess.com"]
[Source "ChessBase"]
[SourceQuality "1"]
[TimeControl "900+5"]

1. d4 {[%emt 0:00:00]} Nf6 {[%emt 0:00:09]} 2. c4 {[%emt 0:00:03]} e6 {[%emt 0:00:03]} 3. Nc3 {[%emt 0:00:03]} Bb4 {[%emt 0:00:13]} 4. Qc2 {[%emt 0:00:02]} d5 {[%emt 0:00:19]} 5. cxd5 {[%emt 0:00:04]} Qxd5 {[%emt 0:00:09]} 6. Nf3 {[%emt 0:00:03]} O-O {[%emt 0:00:15]} 7. Bd2 {[%emt 0:00:48]} Bxc3 {[%emt 0:00:10]} 8. Bxc3 {[%emt 0:00:05]} Ne4 {[%emt 0:00:12]} 9. e3 {[%emt 0:00:04]} Nxc3 {[%emt 0:00:20]} 10. bxc3 {[%emt 0:00:23]} c5 {[%emt 0:00:08]} 11. Bd3 {[%emt 0:00:07]} h6 {[%emt 0:00:06]} 12. O-O {[%emt 0:00:17]} Nc6 {[%emt 0:00:02]} 13. Rab1 {[%emt 0:00:44]} b6 {[%emt 0:00:24]} 14. Bh7+ {[%emt 0:00:45]} Kh8 {[%emt 0:00:03]} 15. Be4 {[%emt 0:00:02]} Qd6 {[%emt 0:00:04]} 16. Ne5 {[%emt 0:00:21]} Bb7 {[%emt 0:00:04]} 17. f4 {[%emt 0:01:14]} cxd4 {[%emt 0:00:28]} 18. Bxc6 {[%emt 0:00:50]} Bxc6 {[%emt 0:00:15]} 19. cxd4 {[%emt 0:00:16]} Rac8 {[%emt 0:00:42]} 20. Rbc1 {[%emt 0:00:09]} Bb7 {[%emt 0:00:06]} 21. Qb3 {[%emt 0:00:48]} Kg8 {[%emt 0:00:07]} 22. Rxc8 {[%emt 0:02:01]} Rxc8 {[%emt 0:00:05]} 23. f5 {[%emt 0:00:02]} Qd5 {[%emt 0:00:07]} 24. Qxd5 {[%emt 0:00:10]} Bxd5 {[%emt 0:00:04]} 25. fxe6 {[%emt 0:00:02]} Bxe6 {[%emt 0:00:44]} 26. e4 {[%emt 0:00:03]} Bxa2 {[%emt 0:00:12]} 27. Ra1 {[%emt 0:00:31]} Rc2 {[%emt 0:00:13]} 28. d5 {[%emt 0:00:02]} a5 {[%emt 0:00:47]} 29. Nc6 {[%emt 0:00:42]} Rd2 {[%emt 0:01:21]} 30. Ne7+ {[%emt 0:01:13]} Kh7 {[%emt 0:01:00]} 31. Rxa2 {[%emt 0:01:06]} Rxa2 {[%emt 0:00:04]} 32. d6 {[%emt 0:00:01]} Rd2 {[%emt 0:00:59]} 33. Nd5 {[%emt 0:00:04]} a4 {[%emt 0:00:03]} 34. d7 {[%emt 0:00:07]} a3 {[%emt 0:00:02]} 35. d8=Q {[%emt 0:00:03]} a2 {[%emt 0:00:01]} 36. Nf6+ {[%emt 0:01:24]} Kg6 {[%emt 0:01:36]} 37. Qxd2 {[%emt 0:00:02]} a1=Q+ {[%emt 0:00:05]} 38. Kf2 {[%emt 0:00:02]} Qxf6+ {[%emt 0:00:04]} 39. Ke2 {[%emt 0:00:08]} Qe5 {[%emt 0:00:20]} 40. Qb4 {[%emt 0:00:05]} Qc5 {[%emt 0:00:46]} 41. Qb1 {[%emt 0:00:16]} Kh7 {[%emt 0:00:25]} 42. Qa2 {[%emt 0:00:36]} Qh5+ {[%emt 0:00:24]} 43. Kf2 {[%emt 0:00:23]} b5 {[%emt 0:00:10]} 44. Qd5 {[%emt 0:00:14]} Qh4+ {[%emt 0:00:44]} 45. Ke3 {[%emt 0:00:33]} Qg5+ {[%emt 0:00:55]} 46. Kd4 {[%emt 0:00:03]} Qd2+ {[%emt 0:01:01]} 47. Kc5 {[%emt 0:00:09]} Qxg2 {[%emt 0:00:02]} 48. Kxb5 {[%emt 0:00:16]} Qg5 {[%emt 0:00:25]} 49. Kc6 {[%emt 0:00:11]} Qf6+ {[%emt 0:00:03]} 50. Kd7 {[%emt 0:00:10]} g6 {[%emt 0:00:21]} 51. e5 {[%emt 0:00:42]} Qf5+ {[%emt 0:00:09]} 52. Ke7 {[%emt 0:00:07]} Kg7 {[%emt 0:00:03]} 53. Qd6 {[%emt 0:00:10]} g5 {[%emt 0:00:17]} 54. Qd4 {[%emt 0:00:34]} Qe6+ {[%emt 0:00:04]} 55. Kd8 {[%emt 0:00:02]} h5 {[%emt 0:00:07]} 56. Qe3 {[%emt 0:00:11]} Kg6 {[%emt 0:00:27]} 57. Qd3+ {[%emt 0:00:01]} Kg7 {[%emt 0:00:21]} 58. Qe3 {[%emt 0:00:03]} g4 {[%emt 0:00:08]} 59. Qf4 {[%emt 0:00:10]} Qg6 {[%emt 0:00:15]} 60. Ke7 {[%emt 0:00:07]} h4 {[%emt 0:00:07]} 61. Qd4 {[%emt 0:00:02]} Qe6+ {[%emt 0:00:03]} 62. Kd8 {[%emt 0:00:02]} g3 {[%emt 0:00:13]} 63. Qxh4 {[%emt 0:00:07]} g2 {[%emt 0:00:03]} 64. Qf2 {[%emt 0:00:03]} Qg6 {[%emt 0:00:15]} 65. Qg1 {[%emt 0:00:01]} Qg4 {[%emt 0:00:05]} 66. Ke7 {[%emt 0:00:11]} Qe6+ {[%emt 0:00:19]} 67. Kd8 {[%emt 0:00:02]} Qd5+ {[%emt 0:00:01]} 68. Kc8 {[%emt 0:00:06]} Qf3 {[%emt 0:00:03]} 69. e6 {[%emt 0:00:03]} fxe6 {[%emt 0:00:07]} 70. Qd4+ {[%emt 0:00:03]} Kg6 {[%emt 0:00:04]} 71. Qb6 {[%emt 0:00:11]} Kf5 {[%emt 0:00:07]} 72. h4 {[%emt 0:00:06]} Qf1 {[%emt 0:00:06]} 0-1

[Event "European Online Club-ch-I 2021"]
[Site "Online"]
[Date "2021.03.27"]
[Round "4.10"]
[White "Bulmaga, Irina"]
[Black "Bilquez, Romain"]
[Result "1-0"]
[ECO "C11"]
[WhiteElo "2440"]
[BlackElo "2276"]
[Annotator "NA"]
[PlyCount "117"]
[EventDate "2021.03.27"]
[EventType "team-tourn"]
[EventCountry "NET"]
[SourceTitle "playchess.com"]
[Source "ChessBase"]
[SourceQuality "1"]
[TimeControl "900+5"]

1. e4 {[%emt 0:00:00]} e6 {[%emt 0:00:06]} 2. d4 {[%emt 0:00:03]} d5 {[%emt 0:00:01]} 3. Nc3 {[%emt 0:00:01]} Nf6 {[%emt 0:00:01]} 4. e5 {[%emt 0:00:01]} Nfd7 {[%emt 0:00:01]} 5. f4 {[%emt 0:00:01]} c5 {[%emt 0:00:01]} 6. Nf3 {[%emt 0:00:02]} Nc6 {[%emt 0:00:01]} 7. Be3 {[%emt 0:00:01]} Qb6 {[%emt 0:00:00]} 8. Na4 {[%emt 0:00:02]} Qa5+ {[%emt 0:00:01]} 9. c3 {[%emt 0:00:03]} c4 {[%emt 0:00:01]} 10. b4 {[%emt 0:00:05]} Qa6 {[%emt 0:00:01]} 11. a3 {[%emt 0:00:25]} b5 {[%emt 0:00:02]} 12. Nc5 {[%emt 0:00:12]} Qb6 {[%emt 0:00:00]} 13. Be2 {[%emt 0:00:12]} a5 {[%emt 0:00:01]} 14. O-O {[%emt 0:00:15]} g6 {[%emt 0:00:08]} 15. Qd2 {[%emt 0:00:31]} Nxc5 {[%emt 0:00:19]} 16. dxc5 {[%emt 0:00:08]} Qc7 {[%emt 0:00:02]} 17. Nd4 {[%emt 0:00:50]} Nxd4 {[%emt 0:00:03]} 18. Bxd4 {[%emt 0:00:03]} h5 {[%emt 0:00:50]} 19. g3 {[%emt 0:00:10]} Bd7 {[%emt 0:00:16]} 20. Bf3 {[%emt 0:00:14]} a4 {[%emt 0:00:12]} 21. h3 {[%emt 0:00:14]} Be7 {[%emt 0:00:02]} 22. Rae1 {[%emt 0:00:06]} O-O-O {[%emt 0:00:02]} 23. Kg2 {[%emt 0:00:05]} Rdg8 {[%emt 0:00:05]} 24. g4 {[%emt 0:00:13]} Rh7 {[%emt 0:00:46]} 25. Bf2 {[%emt 0:00:22]} Rgh8 {[%emt 0:00:51]} 26. gxh5 {[%emt 0:00:05]} gxh5 {[%emt 0:00:05]} 27. Kh1 {[%emt 0:00:07]} Bc6 {[%emt 0:00:07]} 28. Qd4 {[%emt 0:00:13]} Qd8 {[%emt 0:02:06]} 29. Rg1 {[%emt 0:00:36]} Bh4 {[%emt 0:00:16]} 30. Rg2 {[%emt 0:00:55]} Bxf2 {[%emt 0:00:09]} 31. Qxf2 {[%emt 0:00:02]} f6 {[%emt 0:00:07]} 32. Rg6 {[%emt 0:00:31]} Rh6 {[%emt 0:00:40]} 33. Rxh6 {[%emt 0:00:53]} Rxh6 {[%emt 0:00:04]} 34. Qg3 {[%emt 0:01:47]} fxe5 {[%emt 0:00:58]} 35. Rxe5 {[%emt 0:00:30]} Qf6 {[%emt 0:02:25]} 36. f5 {[%emt 0:04:36]} exf5 {[%emt 0:00:16]} 37. Qf4 {[%emt 0:01:11]} Rg6 {[%emt 0:02:28]} 38. Rxf5 {[%emt 0:00:12]} Qe6 {[%emt 0:00:13]} 39. Kh2 {[%emt 0:00:30]} Qe1 {[%emt 0:00:46]} 40. Rf8+ {[%emt 0:00:17]} Be8 {[%emt 0:00:01]} 41. Qf5+ {[%emt 0:01:10]} Kd8 {[%emt 0:02:01]} 42. Rxe8+ {[%emt 0:00:24]} Qxe8 {[%emt 0:00:08]} 43. Bxh5 {[%emt 0:00:03]} Qe1 {[%emt 0:01:15]} 44. Bxg6 {[%emt 0:00:06]} Qd2+ {[%emt 0:00:04]} 45. Kg1 {[%emt 0:00:05]} Qe3+ {[%emt 0:00:10]} 46. Kg2 {[%emt 0:00:03]} Qd2+ {[%emt 0:00:01]} 47. Kg3 {[%emt 0:00:01]} Qxc3+ {[%emt 0:00:02]} 48. Kg4 {[%emt 0:00:01]} Qd4+ {[%emt 0:00:07]} 49. Kh5 {[%emt 0:00:06]} c3 {[%emt 0:00:10]} 50. Qf8+ {[%emt 0:00:04]} Kc7 {[%emt 0:00:03]} 51. Qd6+ {[%emt 0:00:04]} Kb7 {[%emt 0:00:01]} 52. Qb6+ {[%emt 0:00:02]} Ka8 {[%emt 0:00:05]} 53. Qa6+ {[%emt 0:00:03]} Kb8 {[%emt 0:00:02]} 54. Qxb5+ {[%emt 0:00:01]} Ka7 {[%emt 0:00:09]} 55. Qxa4+ {[%emt 0:00:03]} Kb8 {[%emt 0:00:01]} 56. Qe8+ {[%emt 0:00:14]} Ka7 {[%emt 0:00:03]} 57. Qe7+ {[%emt 0:00:11]} Kb8 {[%emt 0:00:03]} 58. c6 {[%emt 0:00:07]} Qe5+ {[%emt 0:00:23]} 59. Qxe5+ {[%emt 0:00:03]} 1-0

[Event "European Online Club-ch-I 2021"]
[Site "Online"]
[Date "2021.03.27"]
[Round "4.11"]
[White "Martsynovskaya, Marina"]
[Black "Atalik, Ekaterina"]
[Result "0-1"]
[ECO "B19"]
[WhiteElo "2046"]
[BlackElo "2430"]
[Annotator "NA"]
[PlyCount "120"]
[EventDate "2021.03.27"]
[EventType "team-tourn"]
[EventCountry "NET"]
[SourceTitle "playchess.com"]
[Source "ChessBase"]
[SourceQuality "1"]
[TimeControl "900+5"]

1. e4 {[%emt 0:00:00]} c6 {[%emt 0:00:04]} 2. d4 {[%emt 0:00:29]} d5 {[%emt 0:00:02]} 3. Nc3 {[%emt 0:00:05]} dxe4 {[%emt 0:00:02]} 4. Nxe4 {[%emt 0:00:05]} Bf5 {[%emt 0:00:02]} 5. Ng3 {[%emt 0:00:03]} Bg6 {[%emt 0:00:01]} 6. Nf3 {[%emt 0:00:03]} e6 {[%emt 0:00:14]} 7. h4 {[%emt 0:00:11]} h6 {[%emt 0:00:03]} 8. h5 {[%emt 0:00:08]} Bh7 {[%emt 0:00:04]} 9. Bd3 {[%emt 0:00:02]} Bxd3 {[%emt 0:00:02]} 10. Qxd3 {[%emt 0:00:01]} Nf6 {[%emt 0:00:01]} 11. Bd2 {[%emt 0:00:01]} Be7 {[%emt 0:00:02]} 12. O-O-O {[%emt 0:00:05]} O-O {[%emt 0:00:01]} 13. Ne5 {[%emt 0:00:12]} Nbd7 {[%emt 0:00:40]} 14. f4 {[%emt 0:00:43]} c5 {[%emt 0:00:24]} 15. Nxd7 {[%emt 0:00:47]} Qxd7 {[%emt 0:00:05]} 16. Bc3 {[%emt 0:00:12]} cxd4 {[%emt 0:00:21]} 17. Bxd4 {[%emt 0:00:03]} Qa4 {[%emt 0:00:24]} 18. Qb3 {[%emt 0:00:40]} Qxb3 {[%emt 0:00:42]} 19. axb3 {[%emt 0:00:06]} Nd5 {[%emt 0:01:00]} 20. Ne2 {[%emt 0:01:49]} Rfd8 {[%emt 0:00:15]} 21. g3 {[%emt 0:00:38]} Bf6 {[%emt 0:00:35]} 22. c3 {[%emt 0:02:03]} Bxd4 {[%emt 0:00:11]} 23. Nxd4 {[%emt 0:00:50]} Nf6 {[%emt 0:00:02]} 24. Rdg1 {[%emt 0:01:22]} Rd5 {[%emt 0:01:11]} 25. g4 {[%emt 0:00:03]} Ne4 {[%emt 0:01:40]} 26. Rh2 {[%emt 0:00:17]} Rc8 {[%emt 0:00:55]} 27. Kb1 {[%emt 0:00:31]} a5 {[%emt 0:00:34]} 28. Re2 {[%emt 0:00:19]} Nf6 {[%emt 0:00:46]} 29. Rh2 {[%emt 0:00:31]} Rcc5 {[%emt 0:00:28]} 30. Nf3 {[%emt 0:00:32]} Kf8 {[%emt 0:02:07]} 31. g5 {[%emt 0:01:17]} Nd7 {[%emt 0:00:09]} 32. Kc2 {[%emt 0:00:51]} Rf5 {[%emt 0:00:18]} 33. Rg4 {[%emt 0:00:11]} hxg5 {[%emt 0:00:18]} 34. Nxg5 {[%emt 0:01:09]} Nf6 {[%emt 0:00:06]} 35. Rgh4 {[%emt 0:00:09]} Ke7 {[%emt 0:01:15]} 36. c4 {[%emt 0:00:10]} b5 {[%emt 0:00:20]} 37. Kd3 {[%emt 0:00:14]} Rc7 {[%emt 0:00:23]} 38. Ne4 {[%emt 0:00:12]} bxc4+ {[%emt 0:00:13]} 39. bxc4 {[%emt 0:00:03]} Nxe4 {[%emt 0:00:01]} 40. Kxe4 {[%emt 0:00:01]} Rxc4+ {[%emt 0:00:01]} 41. Ke3 {[%emt 0:00:03]} Rcc5 {[%emt 0:00:07]} 42. Ke4 {[%emt 0:00:11]} Rb5 {[%emt 0:00:03]} 43. Kf3 {[%emt 0:00:20]} Rb3+ {[%emt 0:00:04]} 44. Kg4 {[%emt 0:00:03]} Rfb5 {[%emt 0:00:02]} 45. h6 {[%emt 0:00:05]} gxh6 {[%emt 0:00:02]} 46. Rxh6 {[%emt 0:00:02]} Rxb2 {[%emt 0:00:02]} 47. Rh1 {[%emt 0:00:03]} a4 {[%emt 0:00:10]} 48. R6h3 {[%emt 0:00:13]} R2b3 {[%emt 0:00:04]} 49. Rh8 {[%emt 0:00:18]} Ra5 {[%emt 0:00:02]} 50. Ra1 {[%emt 0:00:09]} a3 {[%emt 0:00:02]} 51. Rh2 {[%emt 0:00:06]} Rb4 {[%emt 0:00:04]} 52. Rc2 {[%emt 0:00:05]} Kf6 {[%emt 0:00:06]} 53. Raa2 {[%emt 0:00:04]} Rba4 {[%emt 0:00:05]} 54. Kf3 {[%emt 0:00:04]} Rf5 {[%emt 0:00:03]} 55. Rc3 {[%emt 0:00:05]} Rfxf4+ {[%emt 0:00:02]} 56. Ke3 {[%emt 0:00:02]} Rh4 {[%emt 0:00:03]} 57. Rf2+ {[%emt 0:00:06]} Kg6 {[%emt 0:00:17]} 58. Rg2+ {[%emt 0:00:13]} Rhg4 {[%emt 0:00:07]} 59. Ra2 {[%emt 0:00:06]} Rg3+ {[%emt 0:00:03]} 60. Kd2 {[%emt 0:00:03]} Rg2+ {[%emt 0:00:04]} 0-1